Workbook

Sheet Calcul_A_emporter (hidden)
B1: Repas au self | C1: Cocktail/Petit Déjeuner au détail | D1: Sandwich | E1: Pizzas et Quiches | F1: Boissons chaudes | G1: Boissons Fraiches | H1: Boissons alcoolisées TVA 20% | I1: Matériel TVA 20% | Q1: HT | R1: code tva | S1: TAUX TVA | T1: TTC
B2: Ticket Repas 1 (Entrée, Plat, Dessert) | C2: Assortiment de Canapés salés (48 piéces) | D2: Sandwich Jambon Beurre | E2: Quiche loraine (8 parts) | F2: Thermos de café avec matériel (20 personnes) | G2: Eau de source 0,5 l (24 pièces) | H2: ChampagneDevaux Brut 75cl | I2: Forfait Vaisselle Jetable (assiette, gobelet, serviette, couverts) | P2: Forfait livraison | Q2: 35 | R2: 2 | S2: 0.2 | T2: =+Q2*(1+S2) -> 42
B3: Ticket Repas 2 (Entrée, Plat, Dessert, Boisson) | C3: Assortiment de Mignardises (56 piéces) | D3: Sandwich Jambon Emmental | E3: Quiche tomate chèvre (8 parts) | F3: Thermos de thé avec matériel (10 personnes) | G3: Eau de source 1,5 l (6 pièces) | H3: Cidre 75cl | I3: Verre cristal jetable (par 50)
C4: Bol de crudité et sa sauce (le bol) | D4: Sandwich Poulet | E4: Quiche Poulet (8 parts) | G4: Eau de source 1,5 l (1 bouteille) | H4: Crémant de Loire 75cl | I4: Flutes jetable (par 10) | P4: Personnel (mise en place, service et reprise) avant 17h | Q4: 35 | R4: 2 | S4: 0.2 | T4: =+Q4*(1+S4) -> 42
C5: Mini-macarons (12 piéces) | D5: Sandwich Végétarien | E5: Pizza Ronde 3 Fromages (1 part) | G5: Eau pétillante 1 l (6 pièces) | H5: Vin rouge (75 cl) | I5: Serviettes (paquet de 100) | P5: Personnel (mise en place, service et reprise) après 17h | Q5: 48 | R5: 2 | S5: 0.2 | T5: 57.6
C6: Pain au chocolat | D6: Sandwich Thon | E6: Pizza Ronde Poulet (1 part) | G6: Jus de pamplemouse 1l | H6: Vin Blanc (75 cl) | P6: A emporter | Q6: 0 | R6: 0 | S6: 0 | T6: 0
C7: Pain aux Raisins | D7: Sandwich Saumon | E7: Pizza Ronde Végétarienne (1 part) | G7: Jus d'orange 1l | H7: Vin Rosé (75 cl) | P7: 0 | Q7: 0 | R7: 0 | S7: 0 | T7: 0
C8: Croissant | E8: Pizza Carrée 3 Fromages (1 part) | G8: Lait 1l | H8: Droit de bouchon | P8: Ticket Repas 1 (Entrée, Plat, Dessert) | Q8: 15 | R8: 1 | S8: 0.1 | T8: 16.5
C9: Chausson aux Pommes | E9: Pizza Carrée Poulet (1 part) | P9: Ticket Repas 2 (Entrée, Plat, Dessert, Boisson) | Q9: 15.5 | R9: 1 | S9: 0.1 | T9: 17.05
C10: Assortissement de Mini viennoisserie (la piéce) | E10: Pizza Carrée Végétarienne (1 part) | P10: non | Q10: 0 | R10: 0 | S10: 0 | T10: 0
C11: Mini pain au chocolat | E11: Pizza Plaque 3 Fromages (6 parts) | P11: Salle Premier Niveau Cantine | Q11: 70 | R11: 2 | S11: 0.2 | T11: 84
C12: Mini Croissant | E12: Pizza Plaque Poulet (6 parts) | P12: Rez de Jardin Cantine | Q12: 70 | R12: 2 | S12: 0.2 | T12: 84
C13: Mini Pain aux raisins | E13: Pizza Plaque Végétarienne (6 parts) | N13: Type de client | P13: Restaurant Club (modalités à voir avec le Responsable du Club) | Q13: 70 | R13: 2 | S13: 0.2 | T13: 84
C14: Brioche (6 parts) | N14: Type de client : | P14: Pause Café (boisson chaude, jus, eau) | Q14: 1.6 | R14: 1 | S14: 0.1 | T14: 1.76
C15: Brownie (12 parts) | N15: Ministére : | P15: Petit Déjeuner Complet (boisson chaude, jus, viennoisserie) | Q15: 4.2 | R15: 1 | S15: 0.1 | T15: 4.62
C16: Cake (12 parts) | N16: Nom Prénom : | P16: Assortiment de Canapés salés (48 piéces) | Q16: =48*0.99 -> 47.52 | R16: 1 | S16: 0.1 | T16: 52.272
C17: Cannelés | P17: Assortiment de Mignardises (56 piéces) | Q17: =56*0.99 -> 55.44 | R17: 1 | S17: 0.1 | T17: 60.984
C18: Corbeille de Fruits | G18: Eau de source 1,5 l (1 bouteille) | P18: Mini-macarons (12 piéces) | Q18: 13.2 | R18: 1 | S18: 0.1 | T18: 14.52
C19: Pain Surprise (50 sandwichs) | G19: Jus de pamplemouse 1l | K19: Location de salle AURI TVA à 20% | L19: Livraison et Personnel TVA 20 % | P19: Pain au chocolat | Q19: 0.9 | R19: 1 | S19: 0.1 | T19: 0.99
C20: Pâtisserie (part individuelle) | G20: Jus d'orange 1l | P20: Pain aux Raisins | Q20: 0.9 | R20: 1 | S20: 0.1 | T20: 0.99
C21: Tarte aux fruits de saison (6/8 parts) | K21: non | L21: Forfait livraison | P21: Croissant | Q21: 0.9 | R21: 1 | S21: 0.1 | T21: 0.99
C22: Verrine (la piéce) | K22: Salle Premier Niveau Cantine | L22: Personnel (mise en place, service et reprise) avant 17h | P22: Chausson aux Pommes | Q22: 0.9 | R22: 1 | S22: 0.1 | T22: 0.99
K23: Rez de Jardin Cantine | L23: Personnel (mise en place, service et reprise) après 17h | P23: Assortissement de Mini viennoisserie (la piéce) | Q23: 0.7 | R23: 1 | S23: 0.1 | T23: 0.77
K24: Restaurant Club (modalités à voir avec le Responsable du Club) | L24: A emporter | N24: Lieux | P24: Mini pain au chocolat | Q24: 0.7 | R24: 1 | S24: 0.1 | T24: 0.77
N25: Choisir un lieu | P25: Mini Croissant | Q25: 0.7 | R25: 1 | S25: 0.1 | T25: 0.77
N26: A Emporter | P26: Mini Pain aux raisins | Q26: 0.7 | R26: 1 | S26: 0.1 | T26: 0.77
N27: Hall Barbet de Jouy | P27: Assortiment de mini viennoisseries | Q27: 0.7 | R27: 1 | S27: 0.1 | T27: 0.77
N28: Restaurant Club AURI | P28: Brioche (6 parts) | Q28: 6 | R28: 1 | S28: 0.1 | T28: 6.6
N29: Salle premier niveau Cantine | P29: Brownie (12 parts) | Q29: 26.4 | R29: 1 | S29: 0.1 | T29: 29.04
N30: Salle rez de jardin Cantine | P30: Cake (12 parts) | Q30: 17.55 | R30: 1 | S30: 0.1 | T30: 19.305
N31: Hall Gambetta | P31: Cannelés | Q31: 0.85 | R31: 1 | S31: 0.1 | T31: 0.935
N32: Salle Trémouille | P32: Corbeille de fruits (10 personnes) | Q32: 40 | R32: 1 | S32: 0.1 | T32: 44
N33: Salle Sycomore | P33: Pain Surprise (50 sandwichs) | Q33: 36 | R33: 1 | S33: 0.1 | T33: 39.6
N34: Salle de Ball | P34: Pâtisserie (part individuelle) | Q34: 1.5 | R34: 1 | S34: 0.1 | T34: 1.65
N35: Salle Epicéa | P35: Salade de fruits | Q35: 1.8 | R35: 1 | S35: 0.1 | T35: 1.98
N36: Salle Acacia | P36: Tarte aux fruits de saison (10/12 parts) | Q36: 24.7 | R36: 1 | S36: 0.1 | T36: 27.17
N37: Salle 050 BDJ | P37: Tarte aux fruits de saison (6/8 parts) | Q37: 17.49 | R37: 1 | S37: 0.1 | T37: 19.239
N38: Salle 374 BDJ | P38: Sandwich Jambon Beurre | Q38: 2.55 | R38: 1 | S38: 0.1 | T38: 2.805
N39: Salle Sully* | P39: Sandwich Jambon Emmental | Q39: 3.5 | R39: 1 | S39: 0.1 | T39: 3.85
N40: Autre Lieu | P40: Sandwich Poulet | Q40: 3.5 | R40: 1 | S40: 0.1 | T40: 3.85
P41: Sandwich Végétarien | Q41: 3.5 | R41: 1 | S41: 0.1 | T41: 3.85
N42: Prise en charge | P42: Sandwich Thon | Q42: 4 | R42: 1 | S42: 0.1 | T42: 4.4
N43: Prise en charge… | P43: Sandwich Saumon | Q43: 4 | R43: 1 | S43: 0.1 | T43: 4.4
N44: par le service | P44: Verrine (la piéce) | Q44: 1.9 | R44: 1 | S44: 0.1 | T44: =+Q44*(1+S44) -> 2.09
N45: par un organisme extérieur | P45: Bol de crudité et sa sauce (le bol) | Q45: 3 | R45: 1 | S45: 0.1 | T45: =+Q45*(1+S45) -> 3.3
N46: personnelle | P46: Quiche loraine (8 parts) | Q46: 23.4 | R46: 1 | S46: 0.1 | T46: =+Q46*(1+S46) -> 25.74
P47: Quiche tomate chèvre (8 parts) | Q47: 23.4 | R47: 1 | S47: 0.1 | T47: 25.74
N48: Mode de règlement | P48: Quiche Poulet (8 parts) | Q48: 23.4 | R48: 1 | S48: 0.1 | T48: 25.74
N49: Chèque | P49: Pizza Ronde 3 Fromages (1 part) | Q49: 4.1 | R49: 1 | S49: 0.1 | T49: 4.51
N50: Espèces | P50: Pizza Ronde Poulet (1 part) | Q50: 4.1 | R50: 1 | S50: 0.1 | T50: 4.51
N51: Virement régie | P51: Pizza Ronde Végétarienne (1 part) | Q51: 4.1 | R51: 1 | S51: 0.1 | T51: 4.51
N52: Virement chorus | P52: Pizza Carrée 3 Fromages (1 part) | Q52: 3.9 | R52: 1 | S52: 0.1 | T52: 4.29
N53: Carte bleue | P53: Pizza Carrée Poulet (1 part) | Q53: 3.9 | R53: 1 | S53: 0.1 | T53: 4.29
P54: Pizza Carrée Végétarienne (1 part) | Q54: 3.9 | R54: 1 | S54: 0.1 | T54: 4.29
P55: Pizza Plaque 3 Fromages (6 parts) | Q55: 23.4 | R55: 1 | S55: 0.1 | T55: 25.74
P56: Pizza Plaque Poulet (6 parts) | Q56: 23.4 | R56: 1 | S56: 0.1 | T56: 25.74
P57: Pizza Plaque Végétarienne (6 parts) | Q57: 23.4 | R57: 1 | S57: 0.1 | T57: 25.74
P58: Pizza Ronde (1 personne) | Q58: 4.1 | R58: 1 | S58: 0.1 | T58: 4.51
P59: Pizza Carrée (1 part) | Q59: 3.9 | R59: 1 | S59: 0.1 | T59: 4.29
P60: Pizza Plaque (6 parts) | Q60: 23.4 | R60: 1 | S60: 0.1 | T60: 25.74
P61: Thermos de café avec matériel (20 personnes) | Q61: 20 | R61: 1 | S61: 0.1 | T61: 22
P62: Thermos de thé avec matériel (10 personnes) | Q62: 13 | R62: 1 | S62: 0.1 | T62: 14.3
P63: Eau de source 0,5 l (24 pièces) | Q63: =24*0.7 -> 16.8 | R63: 1 | S63: 0.1 | T63: 18.48
P64: Eau de source 1,5 l (6 pièces) | Q64: =1.3*6 -> 7.8 | R64: 1 | S64: 0.1 | T64: 8.58
P65: Eau de source 1,5 l (1 bouteille) | Q65: 1.3 | R65: 1 | S65: 0.1 | T65: 1.43
P66: Eau pétillante 1 l (6 pièces) | Q66: =2.1*6 -> 12.6 | R66: 1 | S66: 0.1 | T66: 13.86
P67: Jus de pamplemouse 1l | Q67: 3.8 | R67: 1 | S67: 0.1 | T67: 4.18
P68: Jus d'orange 1l | Q68: 3.8 | R68: 1 | S68: 0.1 | T68: 4.18
P69: Lait 1l | Q69: 1.8 | R69: 2 | S69: 0.2 | T69: 2.16
P70: ChampagneDevaux Brut 75cl | Q70: 28.8 | R70: 2 | S70: 0.2 | T70: 34.56
P71: Cidre 75cl | Q71: 6.6 | R71: 2 | S71: 0.2 | T71: 7.92
P72: Crémant de Loire 75cl | Q72: 12 | R72: 2 | S72: 0.2 | T72: 14.4
P73: Vin rouge (75 cl) | Q73: 15.1 | R73: 2 | S73: 0.2 | T73: =+Q73*(1+S73) -> 18.12
P74: Vin Blanc (75 cl) | Q74: 15.1 | R74: 2 | S74: 0.2 | T74: =+Q74*(1+S74) -> 18.12
P75: Vin Rosé (75 cl) | Q75: 15.1 | R75: 2 | S75: 0.2 | T75: =+Q75*(1+S75) -> 18.12
P76: Droit de bouchon | Q76: 5.8 | R76: 2 | S76: 0.2 | T76: 6.96
P77: Forfait Vaisselle Jetable (assiette, gobelet, serviette, couverts) | Q77: 1.5 | R77: 2 | S77: 0.2 | T77: 1.8
P78: Verre cristal jetable (par 50) | Q78: 10 | R78: 2 | S78: 0.2 | T78: 12
P79: Flutes jetable (par 10) | Q79: 1.8 | R79: 2 | S79: 0.2 | T79: 2.16
P80: Serviettes (paquet de 100) | Q80: 10 | R80: 2 | S80: 0.2 | T80: =+Q80*(1+S80) -> 12

Sheet DEVIS AURI
C3: BON DE COMMANDE PRESTATIONS ANNEXES - 2017
D5: Envoyer ce devis par mail à : banquet@aurirestaurant.fr
D6: Merci de nous retourner ce fichier sous format excel par mail. Nous vous reverirons un fichier pdf que vous devrez signer pour confirmer votre commande
D10: DEVIS N°
A14: Coordonnées du service commanditaire | B14: =IF($A$18="Nom prénom :","","Indiquer le nom de la personne chargée de la mise en paiement des factures et / ou du centre chorus") -> 
C15: =IF($A$18="Nom prénom :","","Ministére :") -> 
A16: Objet de l'événement : | C16: =IF($A$18="Nom Prénom :","","Service Payeur :") -> 
A17: Nombre de convives : | C17: =IF($A$18="Nom prénom :","","Adresse :") -> 
A18: Nom Prénom : | C18: =IF($A$18="Nom prénom :","","Code Postal :") -> 
A19: Adresse : | C19: =IF($A$18="Nom prénom :","","Ville :") -> 
A20: Code Postal : | C20: =IF($A$18="Nom prénom :","","Nom de la personne") -> 
A21: Ville : | C21: =IF($A$18="Nom prénom :","","Chargé du réglement") -> 
A22: Organisateur : | C22: =IF($A$18="Nom prénom :","","N° de téléphone :") -> 
A23: N° de téléphone : | C23: =IF($A$18="Nom prénom :","","Adresse mail :") -> 
A24: adresse mail : | C24: =IF($A$18="Nom prénom :","","Bon de commande :") -> 
C25: Mode de règlement : | D25: Mode de règlement
C26: =IF(D25="Virement Chorus","N° Chorus :","") -> 
A27: VOTRE COMMANDE
C28: INFORMATIONS SUPPLEMENTAIRES
A29: Date de l'événement :
A30: Heure de l'événement :
A31: Lieu de l'événement : | B31: Choisir un lieu
A32: =IF($B$31="A Emporter","Lieu de retrait :","") ->  | B32: =+IF(A32="Lieu de retrait :"," Le Café à partir de 8h00","") -> 
A33: =IF(B31="Autre Lieu","Autre Lieu :","") -> 
A36: Prestations commandées
A38: Prestations | B38: Gamme | C38: Quantité | D38: Prix Unitaire HT | E38: Prix Total HT | F38: code tva | G38: Prix Total TTC
A39: =livraisonPersonnel -> Livraison et Personnel TVA 20 % | D39: =(IF(ISBLANK($B39),"",VLOOKUP($B39,tarif,2,FALSE))) ->  | E39: =IFERROR(C39*D39,"") ->  | F39: =(IF(ISBLANK($B39),"",VLOOKUP($B39,tarif,3,FALSE))) ->  | G39: =IF(B39=0,"",IF(D39=0,"",IF(F39=0,0,IF(F39=1,E39*1.1,IF(F39=2,E39*1.2))))) -> 
A40: =+Calcul_A_emporter!K19 -> Location de salle AURI TVA à 20% | E40: =IFERROR(C40*D40,"") -> 
C41: =IF(B41=0,"",IF(A41=0,"",IF(ISBLANK($B41),"","Quantité à remplir"))) ->  | E41: =IFERROR(C41*D41,"") ->  | G41: =IF(B41=0,"",IF(D41=0,"",IF(F41=0,0,IF(F41=1,E41*1.1,IF(F41=2,E41*1.2))))) -> 
C45: =IF(B45=0,"",IF(A45=0,"",IF(ISBLANK($B45),"","Quantité à remplir"))) -> 
C46: =IF(B46=0,"",IF(A46=0,"",IF(ISBLANK($B46),"","Quantité à remplir"))) ->  | E46: =IFERROR(C46*D46,"") ->  | G46: =IF(B46=0,"",IF(D46=0,"",IF(F46=0,0,IF(F46=1,E46*1.1,IF(F46=2,E46*1.2))))) -> 
C52: =IF(B52=0,"",IF(A52=0,"",IF(ISBLANK($B52),"","Quantité à remplir"))) ->  | D52: =(IF(ISBLANK($B52),"",VLOOKUP($B52,tarif,2,FALSE))) ->  | F52: =(IF(ISBLANK($B52),"",VLOOKUP($B52,tarif,3,FALSE))) -> 
D53: =(IF(ISBLANK($B53),"",VLOOKUP($B53,tarif,2,FALSE))) ->  | F53: =(IF(ISBLANK($B53),"",VLOOKUP($B53,tarif,3,FALSE))) -> 
D54: =(IF(ISBLANK($B54),"",VLOOKUP($B54,tarif,2,FALSE))) ->  | F54: =(IF(ISBLANK($B54),"",VLOOKUP($B54,tarif,3,FALSE))) -> 
D55: =(IF(ISBLANK($B55),"",VLOOKUP($B55,tarif,2,FALSE))) ->  | F55: =(IF(ISBLANK($B55),"",VLOOKUP($B55,tarif,3,FALSE))) -> 
D56: =(IF(ISBLANK($B56),"",VLOOKUP($B56,tarif,2,FALSE))) ->  | F56: =(IF(ISBLANK($B56),"",VLOOKUP($B56,tarif,3,FALSE))) -> 
A57: TVA | B57: MONTANT HT | C57: TOTAL TVA | D57: TOTAL HT | F57: TOTAL GENERAL TTC
A58: (1) 10% | B58: =SUMIF(F39:F56,1,E39:E56) -> 0 | C58: =+B58*0.1 -> 0 | D58: =+B58 -> 0 | F58: =SUM(C58:E58)+SUM(C59:E59) -> 0
A59: (2) 20% | B59: =SUMIF(F39:F56,2,E39:E56) -> 0 | C59: =+B59*0.2 -> 0 | D59: =+B59 -> 0

Sheet FACTURE AURI (hidden)
C1: FACTURE N°
C2: DEVIS N° | F2: =+'DEVIS AURI'!F10 -> 0
C3: BON DE COMMANDE | F3: =+'DEVIS AURI'!D24 -> 0
C4: N° CHORUS | F4: =+'DEVIS AURI'!D26 -> 0
D10: =+'DEVIS AURI'!D15 -> 0
A11: Coordonnées du service commanditaire | D11: =+'DEVIS AURI'!D16 -> 0
A12: Objet de l'événement : | B12: =+'DEVIS AURI'!B16 -> 0 | D12: =+'DEVIS AURI'!D17 -> 0
A13: =+'DEVIS AURI'!A18 -> Nom Prénom : | B13: =+'DEVIS AURI'!B18 -> 0 | D13: =+'DEVIS AURI'!D18 -> 0 | F13: =+'DEVIS AURI'!D19 -> 0
A14: =+'DEVIS AURI'!A19 -> Adresse : | B14: =+'DEVIS AURI'!B19 -> 0
A15: =+'DEVIS AURI'!A20 -> Code Postal : | B15: =+'DEVIS AURI'!B20 -> 0
A16: =+'DEVIS AURI'!A21 -> Ville : | B16: =+'DEVIS AURI'!B21 -> 0
A17: =+'DEVIS AURI'!A22 -> Organisateur : | B17: =+'DEVIS AURI'!B22 -> 0
A18: =+'DEVIS AURI'!A23 -> N° de téléphone : | B18: =+'DEVIS AURI'!B23 -> 0
A19: =+'DEVIS AURI'!A24 -> adresse mail : | B19: =+'DEVIS AURI'!B24 -> 0
A21: Indiquer le nom de la personne Chargée de la mise en paiement des factures et/ou du centre chorus
D22: Paris,
A23: Nom : | B23: =+'DEVIS AURI'!D20 -> 0 | D23: =TODAY() -> 2017-09-15
A24: =+'DEVIS AURI'!C22 ->  | B24: =+'DEVIS AURI'!D22 -> 0
A25: =+'DEVIS AURI'!C23 ->  | B25: =+'DEVIS AURI'!D23 -> 0
A26: =+'DEVIS AURI'!C25 -> Mode de règlement : | B26: =+'DEVIS AURI'!D25 -> Mode de règlement
B27: =IF(ISBLANK('DEVIS AURI'!E26),"",'DEVIS AURI'!E26) -> 
A28: VOTRE COMMANDE
A30: Date de l'événement : | B30: =+'DEVIS AURI'!B29 -> 00:00:00
A31: Heure de l'événement : | B31: =+'DEVIS AURI'!B30 -> 00:00:00
A32: Lieu de l'événement : | B32: =+'DEVIS AURI'!B31 -> Choisir un lieu
A33: Lieu de retrait : | B33: =+'DEVIS AURI'!B32 -> 
A36: Prestations commandées
A37: Prestations | B37: Gamme | C37: Quantité | D37: Prix Unitaire HT | E37: Prix Total HT | F37: code tva | G37: Prix Total TTC
A38: =IF(ISBLANK('DEVIS AURI'!A39),"",'DEVIS AURI'!A39) -> Livraison et Personnel TVA 20 % | B38: =IF(ISBLANK('DEVIS AURI'!B39),"",'DEVIS AURI'!B39) ->  | C38: =IF(ISBLANK('DEVIS AURI'!C39),"",'DEVIS AURI'!C39) ->  | D38: =IF(ISBLANK('DEVIS AURI'!D39),"",'DEVIS AURI'!D39) ->  | E38: =IF(ISBLANK('DEVIS AURI'!E39),"",'DEVIS AURI'!E39) ->  | F38: =IF(ISBLANK('DEVIS AURI'!F39),"",'DEVIS AURI'!F39) ->  | G38: =IF(ISBLANK('DEVIS AURI'!G39),"",'DEVIS AURI'!G39) -> 
A39: =IF(ISBLANK('DEVIS AURI'!A40),"",'DEVIS AURI'!A40) -> Location de salle AURI TVA à 20% | B39: =IF(ISBLANK('DEVIS AURI'!B40),"",'DEVIS AURI'!B40) ->  | C39: =IF(ISBLANK('DEVIS AURI'!C40),"",'DEVIS AURI'!C40) ->  | D39: =IF(ISBLANK('DEVIS AURI'!D40),"",'DEVIS AURI'!D40) ->  | E39: =IF(ISBLANK('DEVIS AURI'!E40),"",'DEVIS AURI'!E40) ->  | F39: =IF(ISBLANK('DEVIS AURI'!F40),"",'DEVIS AURI'!F40) ->  | G39: =IF(ISBLANK('DEVIS AURI'!G40),"",'DEVIS AURI'!G40) -> 
A40: =IF(ISBLANK('DEVIS AURI'!A41),"",'DEVIS AURI'!A41) ->  | B40: =IF(ISBLANK('DEVIS AURI'!B41),"",'DEVIS AURI'!B41) ->  | C40: =IF(ISBLANK('DEVIS AURI'!C41),"",'DEVIS AURI'!C41) ->  | D40: =IF(ISBLANK('DEVIS AURI'!D41),"",'DEVIS AURI'!D41) ->  | E40: =IF(ISBLANK('DEVIS AURI'!E41),"",'DEVIS AURI'!E41) ->  | F40: =IF(ISBLANK('DEVIS AURI'!F41),"",'DEVIS AURI'!F41) ->  | G40: =IF(ISBLANK('DEVIS AURI'!G41),"",'DEVIS AURI'!G41) -> 
A41: =IF(ISBLANK('DEVIS AURI'!A42),"",'DEVIS AURI'!A42) ->  | B41: =IF(ISBLANK('DEVIS AURI'!B42),"",'DEVIS AURI'!B42) ->  | C41: =IF(ISBLANK('DEVIS AURI'!C42),"",'DEVIS AURI'!C42) ->  | D41: =IF(ISBLANK('DEVIS AURI'!D42),"",'DEVIS AURI'!D42) ->  | E41: =IF(ISBLANK('DEVIS AURI'!E42),"",'DEVIS AURI'!E42) ->  | F41: =IF(ISBLANK('DEVIS AURI'!F42),"",'DEVIS AURI'!F42) ->  | G41: =IF(ISBLANK('DEVIS AURI'!G42),"",'DEVIS AURI'!G42) -> 
A42: =IF(ISBLANK('DEVIS AURI'!A43),"",'DEVIS AURI'!A43) ->  | B42: =IF(ISBLANK('DEVIS AURI'!B43),"",'DEVIS AURI'!B43) ->  | C42: =IF(ISBLANK('DEVIS AURI'!C43),"",'DEVIS AURI'!C43) ->  | D42: =IF(ISBLANK('DEVIS AURI'!D43),"",'DEVIS AURI'!D43) ->  | E42: =IF(ISBLANK('DEVIS AURI'!E43),"",'DEVIS AURI'!E43) ->  | F42: =IF(ISBLANK('DEVIS AURI'!F43),"",'DEVIS AURI'!F43) ->  | G42: =IF(ISBLANK('DEVIS AURI'!G43),"",'DEVIS AURI'!G43) -> 
A43: =IF(ISBLANK('DEVIS AURI'!A44),"",'DEVIS AURI'!A44) ->  | B43: =IF(ISBLANK('DEVIS AURI'!B44),"",'DEVIS AURI'!B44) ->  | C43: =IF(ISBLANK('DEVIS AURI'!C44),"",'DEVIS AURI'!C44) ->  | D43: =IF(ISBLANK('DEVIS AURI'!D44),"",'DEVIS AURI'!D44) ->  | E43: =IF(ISBLANK('DEVIS AURI'!E44),"",'DEVIS AURI'!E44) ->  | F43: =IF(ISBLANK('DEVIS AURI'!F44),"",'DEVIS AURI'!F44) ->  | G43: =IF(ISBLANK('DEVIS AURI'!G44),"",'DEVIS AURI'!G44) -> 
A44: =IF(ISBLANK('DEVIS AURI'!A45),"",'DEVIS AURI'!A45) ->  | B44: =IF(ISBLANK('DEVIS AURI'!B45),"",'DEVIS AURI'!B45) ->  | C44: =IF(ISBLANK('DEVIS AURI'!C45),"",'DEVIS AURI'!C45) ->  | D44: =IF(ISBLANK('DEVIS AURI'!D45),"",'DEVIS AURI'!D45) ->  | E44: =IF(ISBLANK('DEVIS AURI'!E45),"",'DEVIS AURI'!E45) ->  | F44: =IF(ISBLANK('DEVIS AURI'!F45),"",'DEVIS AURI'!F45) ->  | G44: =IF(ISBLANK('DEVIS AURI'!G45),"",'DEVIS AURI'!G45) -> 
A45: =IF(ISBLANK('DEVIS AURI'!A46),"",'DEVIS AURI'!A46) ->  | B45: =IF(ISBLANK('DEVIS AURI'!B46),"",'DEVIS AURI'!B46) ->  | C45: =IF(ISBLANK('DEVIS AURI'!C46),"",'DEVIS AURI'!C46) ->  | D45: =IF(ISBLANK('DEVIS AURI'!D46),"",'DEVIS AURI'!D46) ->  | E45: =IF(ISBLANK('DEVIS AURI'!E46),"",'DEVIS AURI'!E46) ->  | F45: =IF(ISBLANK('DEVIS AURI'!F46),"",'DEVIS AURI'!F46) ->  | G45: =IF(ISBLANK('DEVIS AURI'!G46),"",'DEVIS AURI'!G46) -> 
A46: =IF(ISBLANK('DEVIS AURI'!A47),"",'DEVIS AURI'!A47) ->  | B46: =IF(ISBLANK('DEVIS AURI'!B47),"",'DEVIS AURI'!B47) ->  | C46: =IF(ISBLANK('DEVIS AURI'!C47),"",'DEVIS AURI'!C47) ->  | D46: =IF(ISBLANK('DEVIS AURI'!D47),"",'DEVIS AURI'!D47) ->  | E46: =IF(ISBLANK('DEVIS AURI'!E47),"",'DEVIS AURI'!E47) ->  | F46: =IF(ISBLANK('DEVIS AURI'!F47),"",'DEVIS AURI'!F47) ->  | G46: =IF(ISBLANK('DEVIS AURI'!G47),"",'DEVIS AURI'!G47) -> 
A47: =IF(ISBLANK('DEVIS AURI'!A48),"",'DEVIS AURI'!A48) ->  | B47: =IF(ISBLANK('DEVIS AURI'!B48),"",'DEVIS AURI'!B48) ->  | C47: =IF(ISBLANK('DEVIS AURI'!C48),"",'DEVIS AURI'!C48) ->  | D47: =IF(ISBLANK('DEVIS AURI'!D48),"",'DEVIS AURI'!D48) ->  | E47: =IF(ISBLANK('DEVIS AURI'!E48),"",'DEVIS AURI'!E48) ->  | F47: =IF(ISBLANK('DEVIS AURI'!F48),"",'DEVIS AURI'!F48) ->  | G47: =IF(ISBLANK('DEVIS AURI'!G48),"",'DEVIS AURI'!G48) -> 
A48: =IF(ISBLANK('DEVIS AURI'!A49),"",'DEVIS AURI'!A49) ->  | B48: =IF(ISBLANK('DEVIS AURI'!B49),"",'DEVIS AURI'!B49) ->  | C48: =IF(ISBLANK('DEVIS AURI'!C49),"",'DEVIS AURI'!C49) ->  | D48: =IF(ISBLANK('DEVIS AURI'!D49),"",'DEVIS AURI'!D49) ->  | E48: =IF(ISBLANK('DEVIS AURI'!E49),"",'DEVIS AURI'!E49) ->  | F48: =IF(ISBLANK('DEVIS AURI'!F49),"",'DEVIS AURI'!F49) ->  | G48: =IF(ISBLANK('DEVIS AURI'!G49),"",'DEVIS AURI'!G49) -> 
A49: =IF(ISBLANK('DEVIS AURI'!A50),"",'DEVIS AURI'!A50) ->  | B49: =IF(ISBLANK('DEVIS AURI'!B50),"",'DEVIS AURI'!B50) ->  | C49: =IF(ISBLANK('DEVIS AURI'!C50),"",'DEVIS AURI'!C50) ->  | D49: =IF(ISBLANK('DEVIS AURI'!D50),"",'DEVIS AURI'!D50) ->  | E49: =IF(ISBLANK('DEVIS AURI'!E50),"",'DEVIS AURI'!E50) ->  | F49: =IF(ISBLANK('DEVIS AURI'!F50),"",'DEVIS AURI'!F50) ->  | G49: =IF(ISBLANK('DEVIS AURI'!G50),"",'DEVIS AURI'!G50) -> 
A50: =IF(ISBLANK('DEVIS AURI'!A51),"",'DEVIS AURI'!A51) ->  | B50: =IF(ISBLANK('DEVIS AURI'!B51),"",'DEVIS AURI'!B51) ->  | C50: =IF(ISBLANK('DEVIS AURI'!C51),"",'DEVIS AURI'!C51) ->  | D50: =IF(ISBLANK('DEVIS AURI'!D51),"",'DEVIS AURI'!D51) ->  | E50: =IF(ISBLANK('DEVIS AURI'!E51),"",'DEVIS AURI'!E51) ->  | F50: =IF(ISBLANK('DEVIS AURI'!F51),"",'DEVIS AURI'!F51) ->  | G50: =IF(ISBLANK('DEVIS AURI'!G51),"",'DEVIS AURI'!G51) -> 
A51: =IF(ISBLANK('DEVIS AURI'!A52),"",'DEVIS AURI'!A52) ->  | B51: =IF(ISBLANK('DEVIS AURI'!B52),"",'DEVIS AURI'!B52) ->  | C51: =IF(ISBLANK('DEVIS AURI'!C52),"",'DEVIS AURI'!C52) ->  | D51: =IF(ISBLANK('DEVIS AURI'!D52),"",'DEVIS AURI'!D52) ->  | E51: =IF(ISBLANK('DEVIS AURI'!E52),"",'DEVIS AURI'!E52) ->  | F51: =IF(ISBLANK('DEVIS AURI'!F52),"",'DEVIS AURI'!F52) ->  | G51: =IF(ISBLANK('DEVIS AURI'!G52),"",'DEVIS AURI'!G52) -> 
A52: =IF(ISBLANK('DEVIS AURI'!A53),"",'DEVIS AURI'!A53) ->  | B52: =IF(ISBLANK('DEVIS AURI'!B53),"",'DEVIS AURI'!B53) ->  | C52: =IF(ISBLANK('DEVIS AURI'!C53),"",'DEVIS AURI'!C53) ->  | D52: =IF(ISBLANK('DEVIS AURI'!D53),"",'DEVIS AURI'!D53) ->  | E52: =IF(ISBLANK('DEVIS AURI'!E53),"",'DEVIS AURI'!E53) ->  | F52: =IF(ISBLANK('DEVIS AURI'!F53),"",'DEVIS AURI'!F53) ->  | G52: =IF(ISBLANK('DEVIS AURI'!G53),"",'DEVIS AURI'!G53) -> 
A53: =IF(ISBLANK('DEVIS AURI'!A54),"",'DEVIS AURI'!A54) ->  | B53: =IF(ISBLANK('DEVIS AURI'!B54),"",'DEVIS AURI'!B54) ->  | C53: =IF(ISBLANK('DEVIS AURI'!C54),"",'DEVIS AURI'!C54) ->  | D53: =IF(ISBLANK('DEVIS AURI'!D54),"",'DEVIS AURI'!D54) ->  | E53: =IF(ISBLANK('DEVIS AURI'!E54),"",'DEVIS AURI'!E54) ->  | F53: =IF(ISBLANK('DEVIS AURI'!F54),"",'DEVIS AURI'!F54) ->  | G53: =IF(ISBLANK('DEVIS AURI'!G54),"",'DEVIS AURI'!G54) -> 
A54: =IF(ISBLANK('DEVIS AURI'!A55),"",'DEVIS AURI'!A55) ->  | B54: =IF(ISBLANK('DEVIS AURI'!B55),"",'DEVIS AURI'!B55) ->  | C54: =IF(ISBLANK('DEVIS AURI'!C55),"",'DEVIS AURI'!C55) ->  | D54: =IF(ISBLANK('DEVIS AURI'!D55),"",'DEVIS AURI'!D55) ->  | E54: =IF(ISBLANK('DEVIS AURI'!E55),"",'DEVIS AURI'!E55) ->  | F54: =IF(ISBLANK('DEVIS AURI'!F55),"",'DEVIS AURI'!F55) ->  | G54: =IF(ISBLANK('DEVIS AURI'!G55),"",'DEVIS AURI'!G55) -> 
A55: =IF(ISBLANK('DEVIS AURI'!A56),"",'DEVIS AURI'!A56) ->  | B55: =IF(ISBLANK('DEVIS AURI'!B56),"",'DEVIS AURI'!B56) ->  | C55: =IF(ISBLANK('DEVIS AURI'!C56),"",'DEVIS AURI'!C56) ->  | D55: =IF(ISBLANK('DEVIS AURI'!D56),"",'DEVIS AURI'!D56) ->  | E55: =IF(ISBLANK('DEVIS AURI'!E56),"",'DEVIS AURI'!E56) ->  | F55: =IF(ISBLANK('DEVIS AURI'!F56),"",'DEVIS AURI'!F56) ->  | G55: =IF(ISBLANK('DEVIS AURI'!G56),"",'DEVIS AURI'!G56) -> 
A56: TVA | B56: MONTANT HT | C56: TOTAL TVA | D56: TOTAL HT | F56: TOTAL GENERAL TTC
A57: (1) 10% | B57: =SUMIF(F38:F55,1,E38:E55) -> 0 | C57: =+B57*0.1 -> 0 | D57: =C57+B57 -> 0 | F57: =D57+D58 -> 0
A58: (2) 20% | B58: =SUMIF(F38:F55,2,E38:E55) -> 0 | C58: =+B58*0.2 -> 0 | D58: =C58+B58 -> 0

Sheet PREPARATION (hidden)
R1: Assortiment de Mignardises (56 piéces) | S1: =56*0.99 -> 55.44 | T1: 1 | U1: 0.1 | V1: =+S1*(1+U1) -> 60.984
A2: PATISSERIE | R2: Mini-macarons | S2: 1.1 | T2: 1 | U2: 0.1 | V2: 1.21
A3: DEVIS | B3: date | C3: heure de la prestation | H3: 00:30:00 | R3: Pain au chocolat | T3: 1 | U3: 0.1 | V3: 0
A4: =+'DEVIS AURI'!$F$10 -> 0 | B4: =+'DEVIS AURI'!$B$29 -> 00:00:00 | C4: =('DEVIS AURI'!$B$30)-$H$3 -> -0.02083333333 | R4: Pain aux Raisins | T4: 1 | U4: 0.1 | V4: 0
R5: Croissant | T5: 1 | U5: 0.1 | V5: 0
R6: Chausson aux Pommes | T6: 1 | U6: 0.1 | V6: 0
A7: Assortiment de Mignardises (56 piéces) | E7: =SUMIF('DEVIS AURI'!$B$39:$B$56,PREPARATION!A7,'DEVIS AURI'!$C$39:$C$56) -> 0 | R7: Mini pain au chocolat | S7: 0.7 | T7: 1 | U7: 0.1 | V7: 0.77
A8: Mini-macarons(par 12) | E8: =SUMIF('DEVIS AURI'!$B$39:$B$56,PREPARATION!A8,'DEVIS AURI'!$C$39:$C$56) -> 0 | R8: Mini Croissant | S8: 0.7 | T8: 1 | U8: 0.1 | V8: 0.77
A9: Pain aux Raisins | E9: =SUMIF('DEVIS AURI'!$B$39:$B$56,PREPARATION!A9,'DEVIS AURI'!$C$39:$C$56) -> 0 | R9: Mini Pain aux raisins | S9: 0.7 | T9: 1 | U9: 0.1 | V9: 0.77
A10: Croissant | E10: =SUMIF('DEVIS AURI'!$B$39:$B$56,PREPARATION!A10,'DEVIS AURI'!$C$39:$C$56) -> 0 | R10: Assortiment de mini viennoisseries | S10: 0.7 | T10: 1 | U10: 0.1 | V10: 0.77
A11: Chausson aux Pommes | E11: =SUMIF('DEVIS AURI'!$B$39:$B$56,PREPARATION!A11,'DEVIS AURI'!$C$39:$C$56) -> 0 | R11: Brioche (6 parts) | S11: 6 | T11: 1 | U11: 0.1 | V11: 6.6
A12: Mini pain au chocolat | E12: =SUMIF('DEVIS AURI'!$B$39:$B$56,PREPARATION!A12,'DEVIS AURI'!$C$39:$C$56) -> 0 | R12: Brownie (12 parts) | S12: 26.4 | T12: 1 | U12: 0.1 | V12: 29.04
A13: Mini Croissant | E13: =SUMIF('DEVIS AURI'!$B$39:$B$56,PREPARATION!A13,'DEVIS AURI'!$C$39:$C$56) -> 0 | R13: Cake (12 parts) | S13: 17.55 | T13: 1 | U13: 0.1 | V13: 19.305
A14: Mini Pain aux raisins | E14: =SUMIF('DEVIS AURI'!$B$39:$B$56,PREPARATION!A14,'DEVIS AURI'!$C$39:$C$56) -> 0 | R14: Cannelés | S14: 0.85 | T14: 1 | U14: 0.1 | V14: 0.935
A15: Brioche (6 parts) | E15: =SUMIF('DEVIS AURI'!$B$39:$B$56,PREPARATION!A15,'DEVIS AURI'!$C$39:$C$56) -> 0 | R15: Corbeille de fruits (10 personnes) | S15: 40 | T15: 1 | U15: 0.1 | V15: 44
A16: Brownie (12 parts) | E16: =SUMIF('DEVIS AURI'!$B$39:$B$56,PREPARATION!A16,'DEVIS AURI'!$C$39:$C$56) -> 0 | R16: Pain Surprise (50 sandwichs) | S16: 36 | T16: 1 | U16: 0.1 | V16: 39.6
A17: Cake (12 parts) | E17: =SUMIF('DEVIS AURI'!$B$39:$B$56,PREPARATION!A17,'DEVIS AURI'!$C$39:$C$56) -> 0 | R17: Pâtisserie (part individuelle) | S17: 1.5 | T17: 1 | U17: 0.1 | V17: 1.65
A18: Cannelés | E18: =SUMIF('DEVIS AURI'!$B$39:$B$56,PREPARATION!A18,'DEVIS AURI'!$C$39:$C$56) -> 0 | R18: Salade de fruits | S18: 1.8 | T18: 1 | U18: 0.1 | V18: 1.98
A19: Corbeille de fruits (10 personnes) | E19: =SUMIF('DEVIS AURI'!$B$39:$B$56,PREPARATION!A19,'DEVIS AURI'!$C$39:$C$56) -> 0 | R19: Tarte aux fruits de saison (10/12 parts) | S19: 24.7 | T19: 1 | U19: 0.1 | V19: 27.17
A20: Salade de fruits | E20: =SUMIF('DEVIS AURI'!$B$39:$B$56,PREPARATION!A20,'DEVIS AURI'!$C$39:$C$56) -> 0 | R20: Tarte aux fruits de saison (6/8 parts) | S20: 17.49 | T20: 1 | U20: 0.1 | V20: 19.239
A21: Tarte aux fruits de saison (10/12 parts) | E21: =SUMIF('DEVIS AURI'!$B$39:$B$56,PREPARATION!A21,'DEVIS AURI'!$C$39:$C$56) -> 0 | R21: Sandwich Jambon Beurre | S21: 2.55 | T21: 1 | U21: 0.1 | V21: 2.805
A22: Tarte aux fruits de saison (6/8 parts) | E22: =SUMIF('DEVIS AURI'!$B$39:$B$56,PREPARATION!A22,'DEVIS AURI'!$C$39:$C$56) -> 0 | R22: Sandwich Jambon Emmental | S22: 3.5 | T22: 1 | U22: 0.1 | V22: 3.85
R23: Sandwich Poulet | S23: 3.5 | T23: 1 | U23: 0.1 | V23: 3.85
R24: Sandwich Végétarien | S24: 3.5 | T24: 1 | U24: 0.1 | V24: 3.85
R25: Sandwich Thon | S25: 4 | T25: 1 | U25: 0.1 | V25: 4.4
R26: Sandwich Saumon | S26: 4 | T26: 1 | U26: 0.1 | V26: 4.4
R27: Quiche loraine (8 parts) | S27: 23.4 | T27: 1 | U27: 0.1 | V27: 25.74
R28: Quiche tomate chèvre (8 parts) | S28: 23.4 | T28: 1 | U28: 0.1 | V28: 25.74
R29: Quiche Poulet (8 parts) | S29: 23.4 | T29: 1 | U29: 0.1 | V29: 25.74
R30: Pizza Ronde 3 Fromages (1 part) | S30: 4.1 | T30: 1 | U30: 0.1 | V30: 4.51
R31: Pizza Ronde Poulet (1 part) | S31: 4.1 | T31: 1 | U31: 0.1 | V31: 4.51
R32: Pizza Ronde Végétarienne (1 part) | S32: 4.1 | T32: 1 | U32: 0.1 | V32: 4.51
R33: Pizza Carrée 3 Fromages (1 part) | S33: 3.9 | T33: 1 | U33: 0.1 | V33: 4.29
R34: Pizza Carrée Poulet (1 part) | S34: 3.9 | T34: 1 | U34: 0.1 | V34: 4.29
R35: Pizza Carrée Végétarienne (1 part) | S35: 3.9 | T35: 1 | U35: 0.1 | V35: 4.29
R36: Pizza Plaque 3 Fromages (6 parts) | S36: 23.4 | T36: 1 | U36: 0.1 | V36: 25.74
R37: Pizza Plaque Poulet (6 parts) | S37: 23.4 | T37: 1 | U37: 0.1 | V37: 25.74
R38: Pizza Plaque Végétarienne (6 parts) | S38: 23.4 | T38: 1 | U38: 0.1 | V38: 25.74
R39: Pizza Ronde (1 personne) | S39: 4.1 | T39: 1 | U39: 0.1 | V39: 4.51
R40: Pizza Carrée (1 part) | S40: 3.9 | T40: 1 | U40: 0.1 | V40: 4.29
R41: Pizza Plaque (6 parts) | S41: 23.4 | T41: 1 | U41: 0.1 | V41: 25.74
A42: CHAUD | R42: Thermos de café avec matériel | S42: 20 | T42: 1 | U42: 0.1 | V42: 22
A43: DEVIS | B43: date | C43: heure de la prestation | R43: Thermos de thé avec matériel | S43: 13 | T43: 1 | U43: 0.1 | V43: 14.3
A44: =+'DEVIS AURI'!$F$10 -> 0 | B44: =+'DEVIS AURI'!$B$29 -> 00:00:00 | C44: =('DEVIS AURI'!$B$30)-$H$3 -> -0.02083333333 | R44: Eau de source 0,5 l (24 pièces) | S44: =24*0.7 -> 16.8 | T44: 1 | U44: 0.1 | V44: 18.48
R45: Eau de source 1,5 l (6 pièces) | S45: =1.3*6 -> 7.8 | T45: 1 | U45: 0.1 | V45: 8.58
A46: Quiche loraine (8 parts) | E46: =SUMIF('DEVIS AURI'!$B$39:$B$56,PREPARATION!A46,'DEVIS AURI'!$C$39:$C$56) -> 0 | R46: Eau pétillante 1 l (6 pièces) | S46: =2.1*6 -> 12.6 | T46: 1 | U46: 0.1 | V46: 13.86
A47: Quiche tomate chèvre (8 parts) | E47: =SUMIF('DEVIS AURI'!$B$39:$B$56,PREPARATION!A47,'DEVIS AURI'!$C$39:$C$56) -> 0 | R47: Jus de pamplemouse 1l | S47: 3.8 | T47: 1 | U47: 0.1 | V47: 4.18
A48: Quiche Poulet (8 parts) | E48: =SUMIF('DEVIS AURI'!$B$39:$B$56,PREPARATION!A48,'DEVIS AURI'!$C$39:$C$56) -> 0 | R48: Jus d'orange 1l | S48: 3.8 | T48: 1 | U48: 0.1 | V48: 4.18
A49: Pizza Ronde 3 Fromages (1 part) | E49: =SUMIF('DEVIS AURI'!$B$39:$B$56,PREPARATION!A49,'DEVIS AURI'!$C$39:$C$56) -> 0 | R49: Lait | S49: 1.8 | T49: 2 | U49: 0.2 | V49: 2.16
A50: Pizza Ronde Poulet (1 part) | E50: =SUMIF('DEVIS AURI'!$B$39:$B$56,PREPARATION!A50,'DEVIS AURI'!$C$39:$C$56) -> 0 | R50: ChampagneDevaux Brut | S50: 28.8 | T50: 2 | U50: 0.2 | V50: 34.56
A51: Pizza Ronde Végétarienne (1 part) | E51: =SUMIF('DEVIS AURI'!$B$39:$B$56,PREPARATION!A51,'DEVIS AURI'!$C$39:$C$56) -> 0 | R51: Cidre | S51: 6.6 | T51: 2 | U51: 0.2 | V51: 7.92
A52: Pizza Carrée 3 Fromages (1 part) | E52: =SUMIF('DEVIS AURI'!$B$39:$B$56,PREPARATION!A52,'DEVIS AURI'!$C$39:$C$56) -> 0 | R52: Crémant de Loire | S52: 12 | T52: 2 | U52: 0.2 | V52: 14.4
A53: Pizza Carrée Poulet (1 part) | E53: =SUMIF('DEVIS AURI'!$B$39:$B$56,PREPARATION!A53,'DEVIS AURI'!$C$39:$C$56) -> 0 | R53: Vin rouge (75 cl) | S53: 15.1 | T53: 2 | U53: 0.2 | V53: =+S53*(1+U53) -> 18.12
A54: Pizza Carrée Végétarienne (1 part) | E54: =SUMIF('DEVIS AURI'!$B$39:$B$56,PREPARATION!A54,'DEVIS AURI'!$C$39:$C$56) -> 0 | R54: Vin Blanc (75 cl) | S54: 15.1 | T54: 2 | U54: 0.2 | V54: =+S54*(1+U54) -> 18.12
A55: Pizza Plaque 3 Fromages (6 parts) | E55: =SUMIF('DEVIS AURI'!$B$39:$B$56,PREPARATION!A55,'DEVIS AURI'!$C$39:$C$56) -> 0 | R55: Vin Rosé (75 cl) | S55: 15.1 | T55: 2 | U55: 0.2 | V55: =+S55*(1+U55) -> 18.12
A56: Pizza Plaque Poulet (6 parts) | E56: =SUMIF('DEVIS AURI'!$B$39:$B$56,PREPARATION!A56,'DEVIS AURI'!$C$39:$C$56) -> 0 | R56: Droit de bouchon | S56: 5.8 | T56: 2 | U56: 0.2 | V56: 6.96
A57: Pizza Plaque Végétarienne (6 parts) | E57: =SUMIF('DEVIS AURI'!$B$39:$B$56,PREPARATION!A57,'DEVIS AURI'!$C$39:$C$56) -> 0 | R57: Forfait Vaisselle Jetable (assiette, gobelet, serviette, couverts) | S57: 1.5 | T57: 2 | U57: 0.2 | V57: 1.8
A58: Pizza Ronde (1 personne) | E58: =SUMIF('DEVIS AURI'!$B$39:$B$56,PREPARATION!A58,'DEVIS AURI'!$C$39:$C$56) -> 0 | R58: Verre cristal jetable (part 100) | S58: 18 | T58: 2 | U58: 0.2 | V58: 21.6
A59: Pizza Carrée (1 part) | E59: =SUMIF('DEVIS AURI'!$B$39:$B$56,PREPARATION!A59,'DEVIS AURI'!$C$39:$C$56) -> 0 | R59: Serviettes (paquet de 100) | S59: 10 | T59: 2 | U59: 0.2 | V59: =+S59*(1+U59) -> 12
A60: Pizza Plaque (6 parts) | E60: =SUMIF('DEVIS AURI'!$B$39:$B$56,PREPARATION!A60,'DEVIS AURI'!$C$39:$C$56) -> 0
A77: GRIGNOTE
A78: DEVIS | B78: date | C78: heure de la prestation
A79: =+'DEVIS AURI'!$F$10 -> 0 | B79: =+'DEVIS AURI'!$B$29 -> 00:00:00 | C79: =('DEVIS AURI'!$B$30)-$H$3 -> -0.02083333333
A81: Assortiment de Canapés salés (48 piéces) | E81: =SUMIF('DEVIS AURI'!$B$39:$B$56,PREPARATION!A81,'DEVIS AURI'!$C$39:$C$56) -> 0
A82: Pain Surprise (50 sandwichs) | E82: =SUMIF('DEVIS AURI'!$B$39:$B$56,PREPARATION!A82,'DEVIS AURI'!$C$39:$C$56) -> 0
A83: Sandwich Jambon Beurre | E83: =SUMIF('DEVIS AURI'!$B$39:$B$56,PREPARATION!A83,'DEVIS AURI'!$C$39:$C$56) -> 0
A84: Sandwich Jambon Emmental | E84: =SUMIF('DEVIS AURI'!$B$39:$B$56,PREPARATION!A84,'DEVIS AURI'!$C$39:$C$56) -> 0
A85: Sandwich Poulet | E85: =SUMIF('DEVIS AURI'!$B$39:$B$56,PREPARATION!A85,'DEVIS AURI'!$C$39:$C$56) -> 0
A86: Sandwich Végétarien | E86: =SUMIF('DEVIS AURI'!$B$39:$B$56,PREPARATION!A86,'DEVIS AURI'!$C$39:$C$56) -> 0
A87: Sandwich Thon | E87: =SUMIF('DEVIS AURI'!$B$39:$B$56,PREPARATION!A87,'DEVIS AURI'!$C$39:$C$56) -> 0
A88: Sandwich Saumon | E88: =SUMIF('DEVIS AURI'!$B$39:$B$56,PREPARATION!A88,'DEVIS AURI'!$C$39:$C$56) -> 0
A89: Bol de crudité et sa sauce (le bol) | E89: =SUMIF('DEVIS AURI'!$B$39:$B$56,PREPARATION!A89,'DEVIS AURI'!$C$39:$C$56) -> 0
A92: BANQUET
A93: DEVIS | B93: date | C93: heure de la prestation
A94: =+'DEVIS AURI'!$F$10 -> 0 | B94: =+'DEVIS AURI'!$B$29 -> 00:00:00 | C94: =('DEVIS AURI'!$B$30)-$H$3 -> -0.02083333333
A96: Pause Café | E96: =SUMIF('DEVIS AURI'!$B$39:$B$56,PREPARATION!A96,'DEVIS AURI'!$C$39:$C$56) -> 0
A97: Petit Déjeuner Complet (boisson chaude, jus, viennoisserie) | E97: =SUMIF('DEVIS AURI'!$B$39:$B$56,PREPARATION!A97,'DEVIS AURI'!$C$39:$C$56) -> 0
A98: Thermos de café avec matériel | E98: =SUMIF('DEVIS AURI'!$B$39:$B$56,PREPARATION!A98,'DEVIS AURI'!$C$39:$C$56) -> 0
A99: Thermos de thé avec matériel | E99: =SUMIF('DEVIS AURI'!$B$39:$B$56,PREPARATION!A99,'DEVIS AURI'!$C$39:$C$56) -> 0
A100: Thermos de café avec matériel (20 personnes) | E100: =SUMIF('DEVIS AURI'!$B$39:$B$56,PREPARATION!A100,'DEVIS AURI'!$C$39:$C$56) -> 0
A101: Thermos de thé avec matériel (10 personnes) | E101: =SUMIF('DEVIS AURI'!$B$39:$B$56,PREPARATION!A101,'DEVIS AURI'!$C$39:$C$56) -> 0
A102: Eau de source 0,5 l (24 pièces) | E102: =SUMIF('DEVIS AURI'!$B$39:$B$56,PREPARATION!A102,'DEVIS AURI'!$C$39:$C$56) -> 0
A103: Eau de source 1,5 l (6 pièces) | E103: =SUMIF('DEVIS AURI'!$B$39:$B$56,PREPARATION!A103,'DEVIS AURI'!$C$39:$C$56) -> 0
A104: Eau de source 1,5 l (1 bouteille) | E104: =SUMIF('DEVIS AURI'!$B$39:$B$56,PREPARATION!A104,'DEVIS AURI'!$C$39:$C$56) -> 0
A105: Eau pétillante 1 l (6 pièces) | E105: =SUMIF('DEVIS AURI'!$B$39:$B$56,PREPARATION!A105,'DEVIS AURI'!$C$39:$C$56) -> 0
A106: Jus de pamplemouse 1l | E106: =SUMIF('DEVIS AURI'!$B$39:$B$56,PREPARATION!A106,'DEVIS AURI'!$C$39:$C$56) -> 0
A107: Jus d'orange 1l | E107: =SUMIF('DEVIS AURI'!$B$39:$B$56,PREPARATION!A107,'DEVIS AURI'!$C$39:$C$56) -> 0
A108: Lait 1l | E108: =SUMIF('DEVIS AURI'!$B$39:$B$56,PREPARATION!A108,'DEVIS AURI'!$C$39:$C$56) -> 0
A109: ChampagneDevaux Brut 75cl | E109: =SUMIF('DEVIS AURI'!$B$39:$B$56,PREPARATION!A109,'DEVIS AURI'!$C$39:$C$56) -> 0
A110: Cidre 75cl | E110: =SUMIF('DEVIS AURI'!$B$39:$B$56,PREPARATION!A110,'DEVIS AURI'!$C$39:$C$56) -> 0
A111: Crémant de Loire 75cl | E111: =SUMIF('DEVIS AURI'!$B$39:$B$56,PREPARATION!A111,'DEVIS AURI'!$C$39:$C$56) -> 0
A112: Vin rouge (75 cl) | E112: =SUMIF('DEVIS AURI'!$B$39:$B$56,PREPARATION!A112,'DEVIS AURI'!$C$39:$C$56) -> 0
A113: Vin Blanc (75 cl) | E113: =SUMIF('DEVIS AURI'!$B$39:$B$56,PREPARATION!A113,'DEVIS AURI'!$C$39:$C$56) -> 0
A114: Vin Rosé (75 cl) | E114: =SUMIF('DEVIS AURI'!$B$39:$B$56,PREPARATION!A114,'DEVIS AURI'!$C$39:$C$56) -> 0
A115: Droit de bouchon | E115: =SUMIF('DEVIS AURI'!$B$39:$B$56,PREPARATION!A115,'DEVIS AURI'!$C$39:$C$56) -> 0
A116: Forfait Vaisselle Jetable (assiette, gobelet, serviette, couverts) | E116: =SUMIF('DEVIS AURI'!$B$39:$B$56,PREPARATION!A116,'DEVIS AURI'!$C$39:$C$56) -> 0
A117: Flutes jetable (par 10) | E117: =SUMIF('DEVIS AURI'!$B$39:$B$56,PREPARATION!A117,'DEVIS AURI'!$C$39:$C$56) -> 0
A118: Verre cristal jetable (part 50) | E118: =SUMIF('DEVIS AURI'!$B$39:$B$56,PREPARATION!A118,'DEVIS AURI'!$C$39:$C$56) -> 0
A119: Serviettes (paquet de 100) | E119: =SUMIF('DEVIS AURI'!$B$39:$B$56,PREPARATION!A119,'DEVIS AURI'!$C$39:$C$56) -> 0

Sheet Feuil1 (hidden)

Sheet pdj (hidden)
A1: BON DE FABRICATION PETIT DEJEUNER
A3: devis | B3: =+'DEVIS AURI'!F10 -> 0
B4: DATE : | C4: =+'DEVIS AURI'!B29 -> 00:00:00
B5: HEURE : | C5: =+'DEVIS AURI'!B30-M5 -> -0.02083333333 | M5: 00:30:00
B6: LIEU : | C6: =+'DEVIS AURI'!B31 -> Choisir un lieu
B8: A EMPORTER : | C8: =+'DEVIS AURI'!B32 -> 
A10: Nombre : | B10: =+'DEVIS AURI'!B17 -> 0
A11: NATURE DE LA PRESTATION
A15: FABRICATION ET SORTIES | C15: Boissons chaudes
C17: =SUMIF('DEVIS AURI'!$B$39:$B$56,D17,'DEVIS AURI'!$C$39:$C$56) -> 0 | D17: Thermos de café avec matériel (20 personnes)
C18: =SUMIF('DEVIS AURI'!$B$39:$B$56,D18,'DEVIS AURI'!$C$39:$C$56) -> 0 | D18: Thermos de thé avec matériel (10 personnes)
C19: =SUMIF('DEVIS AURI'!$B$39:$B$56,D19,'DEVIS AURI'!$C$39:$C$56) -> 0 | D19: lait 1l
C20: XX | D20: sucre
C21: XX | D21: sachet de thé
C22: XX | D22: agitateur
A23: =SUMIF('DEVIS AURI'!$B$39:$B$56,B23,'DEVIS AURI'!$C$39:$C$56) -> 0 | B23: mini croissant | C23: XX | D23: serviette
A24: =SUMIF('DEVIS AURI'!$B$39:$B$56,B24,'DEVIS AURI'!$C$39:$C$56) -> 0 | B24: mini pain au chocolat | C24: XX | D24: gobelet à café
A25: =SUMIF('DEVIS AURI'!$B$39:$B$56,B25,'DEVIS AURI'!$C$39:$C$56) -> 0 | B25: mini pain aux raisins | C25: XX | D25: gobelet à thé
C26: XX | D26: Verre cristal
D27: nappe en papier
D28: ciseaux + scotch
D29: nappe en tissu
C30: 1 | D30: sac poubelle
A31: BOISSON ECONOMAT | C31: RETOURS BOISSONS
A33: Eau de source 1,5 l (1 bouteille) | B33: =SUMIF('DEVIS AURI'!$B$39:$B$56,A33,'DEVIS AURI'!$C$39:$C$56) -> 0
A34: Jus de pamplemouse 1l | B34: =SUMIF('DEVIS AURI'!$B$39:$B$56,A34,'DEVIS AURI'!$C$39:$C$56) -> 0
A35: Jus d'orange 1l | B35: =SUMIF('DEVIS AURI'!$B$39:$B$56,A35,'DEVIS AURI'!$C$39:$C$56) -> 0
A36: autre | B36: =SUMIF('DEVIS AURI'!$B$39:$B$56,A36,'DEVIS AURI'!$C$39:$C$56) -> 0
A41: Viennoiseries
B42: =+'DEVIS AURI'!B22 -> 0
A43: pour le : | C43: =+'DEVIS AURI'!B29 -> 00:00:00
A45: Heure : | C45: =+'DEVIS AURI'!B30-M45 -> -0.03125 | M45: 00:45:00
A48: mini pain au chocolat | D48: =+A24 -> 0
A49: mini croissant | D49: =+A23 -> 0
A50: mini pain aux raisins | D50: =+A25 -> 0
A53: Merci
